lending/lending_fUSD_20240809
["ID","MTS","AMOUNT","RATE_DAILY","PERIOD"]
[334560054,1723213859451,-328.17531038,0.00015,2]
[334560055,1723213859462,-1929.98830795,0.00015,2]
[334560056,1723213859472,-9661.132351,0.00015,2]
[334560057,1723213859482,-5000.0,0.00015,2]
[334560058,1723213859493,-751.0,0.00015,2]
[334560059,1723213859503,-4053.0,0.00015,2]
[334560060,1723213859513,-2024.85092,0.00015,2]
[334560061,1723213859523,-150.0,0.00015,2]
[334560062,1723213859533,-300.0,0.00015068,2]
[334560063,1723213859543,-8734.3,0.00015068,2]
[334560064,1723213859558,-2818.982069,0.00015068,2]
[334560065,1723213859568,-500.0,0.000151,2]
[334560066,1723213859577,-366.61282358,0.00015101,2]
[334560067,1723213859588,-150.0,0.00015109,2]
[334560068,1723213859597,-400.0,0.00015142,2]
[334560069,1723213859606,-400.0,0.00015142,2]
[334560070,1723213859615,-400.0,0.00015142,2]
[334560071,1723213859626,-366.61282358,0.00015242,2]
[334560072,1723213859635,-150.0,0.00015261,2]
[334560073,1723213859645,-150.0,0.00015261,2]
[334560074,1723213859654,-200.75738397,0.00015346,2]
[334560075,1723213859664,-624.2402766,0.00015369,2]
[334560076,1723213859673,-366.61282358,0.00015384,2]
[334560077,1723213859682,-150.0,0.00015413,2]
[334560078,1723213859692,-366.61282358,0.00015525,2]
[334560079,1723213859701,-150.0,0.00015565,2]
[334560080,1723213859710,-1613.0,0.00015582,2]
[334560081,1723213859720,-366.61282358,0.00015667,2]
[334560082,1723213859730,-724.91,0.00015712,2]
[334560083,1723213859739,-150.0,0.00015717,2]
[334560084,1723213859749,-8734.3,0.00015753,2]
[334560085,1723213859758,-366.61282358,0.00015808,2]
[334560086,1723213859768,-166.69,0.00015831,2]
[334560087,1723213859777,-168.55,0.00015831,2]
[334560088,1723213859786,-2490.42849,0.0001584,2]
[334560089,1723213859802,-150.0,0.0001587,2]
[334560090,1723213859812,-150.0,0.0001587,2]
[334560091,1723213859821,-2818.982069,0.0001589,2]
[334560092,1723213859831,-366.61282358,0.00015949,2]
[334560093,1723213859840,-1249.9171138,0.00016,5]
[334560094,1723213859849,-5000.0,0.00016,2]
[334560095,1723213859859,-2000.0,0.00016,2]
[334560096,1723213859868,-700.0,0.00016,2]
[334560097,1723213859878,-2000.0,0.0001601,2]
[334560098,1723213859887,-2000.0,0.0001602,2]
[334560099,1723213859896,-150.0,0.00016022,2]
[334560100,1723213859905,-3076.262437,0.0001603,2]
[334560101,1723213859915,-366.61282358,0.00016091,2]
[334560102,1723213859924,-9999.99,0.00016116,2]
[334560103,1723213859933,-298.0,0.0001616,2]
[334560104,1723213859942,-150.0,0.00016174,2]
[334560105,1723213859951,-366.61282358,0.00016232,2]
[334560106,1723213859960,-150.0,0.0001625,2]
[334560107,1723213859969,-1700.0,0.0001628,2]
[334560108,1723213859979,-2000.0,0.0001628,2]
[334560109,1723213859988,-800.0,0.0001628,2]
[334560110,1723213859998,-3000.0,0.0001628,2]
[334560111,1723213860007,-3000.0,0.0001628,2]
[334560112,1723213860017,-150.0,0.00016326,2]
[334560113,1723213860027,-200.0,0.0001634,2]
[334560114,1723213860037,-366.61282358,0.00016374,2]
[334560115,1723213860052,-2000.0,0.00016438,2]
[334560116,1723213860062,-235.76,0.00016438,2]
[334560117,1723213860072,-235.76,0.00016438,2]
[334560118,1723213860082,-235.76,0.00016438,2]
[334560119,1723213860092,-235.76,0.00016438,2]
[334560120,1723213860102,-235.76,0.00016438,2]
[334560121,1723213860111,-235.76,0.00016438,2]
[334560122,1723213860121,-235.76,0.00016438,2]
[334560123,1723213860130,-235.76,0.00016438,2]
[334560124,1723213860140,-235.76,0.00016438,2]
[334560125,1723213860150,-235.76,0.00016438,2]
[334560126,1723213860161,-235.76,0.00016438,2]
[334560127,1723213860172,-235.76,0.00016438,2]
[334560128,1723213860181,-235.76,0.00016438,2]
[334560129,1723213860192,-235.76,0.00016438,2]
[334560130,1723213860202,-235.76,0.00016438,2]
[334560131,1723213860213,-235.76,0.00016438,2]
[334560132,1723213860224,-235.76,0.00016438,2]
[334560133,1723213860233,-235.76,0.00016438,2]
[334560134,1723213860245,-235.76,0.00016438,2]
[334560135,1723213860255,-235.76,0.00016438,2]
[334560136,1723213860265,-235.76,0.00016438,2]
[334560137,1723213860274,-235.76,0.00016438,2]
[334560138,1723213860283,-235.76,0.00016438,2]
[334560139,1723213860293,-235.93070657,0.00016438,2]
[334560140,1723213860311,-795.96,0.00016438,2]
[334560141,1723213860325,-795.96,0.00016438,2]
[334560142,1723213860418,-795.96,0.00016438,2]
[334560143,1723213860433,-795.96,0.00016438,2]
[334560144,1723213860442,-795.96,0.00016438,2]
[334560145,1723213860453,-795.96,0.00016438,2]
[334560146,1723213860462,-795.96,0.00016438,2]
[334560147,1723213860472,-795.96,0.00016438,2]
[334560148,1723213860481,-795.96,0.00016438,2]
[334560149,1723213860490,-795.96,0.00016438,2]
[334560150,1723213860501,-795.96,0.00016438,2]
[334560151,1723213860510,-795.96,0.00016438,2]
[334560152,1723213860519,-795.96,0.00016438,2]
[334560153,1723213860529,-795.96,0.00016438,2]
[334560154,1723213860538,-795.96,0.00016438,2]
[334560155,1723213860551,-795.96,0.00016438,2]
[334560156,1723213860560,-795.96,0.00016438,2]
[334560157,1723213860570,-795.96,0.00016438,2]
[334560158,1723213860579,-795.96,0.00016438,2]
[334560159,1723213860588,-795.96,0.00016438,2]
[334560160,1723213860597,-795.96,0.00016438,2]
[334560161,1723213860606,-795.96,0.00016438,2]
[334560162,1723213860615,-795.96,0.00016438,2]
[334560163,1723213860625,-796.18500164,0.00016438,2]
[334560164,1723213860634,-300.0,0.00016438,2]
[334560165,1723213860645,-8734.3,0.00016438,2]
[334560166,1723213860655,-150.0,0.00016478,2]
[334560167,1723213860665,-150.0,0.00016478,2]
[334560168,1723213860675,-166.69,0.00016484,2]
[334560169,1723213860685,-4982.4,0.000165,2]
[334560170,1723213860695,-366.61282358,0.00016515,2]
[334560171,1723213860704,-426.2,0.00016524,2]
[334560172,1723213860714,-153.53,0.00016524,2]
[334560173,1723213860725,-150.0,0.00016524,2]
[334560174,1723213860735,-150.0,0.00016524,2]
[334560175,1723213860747,-150.0,0.00016524,2]
[334560176,1723213860757,-530.8,0.00016524,2]
[334560177,1723213860767,-426.2,0.00016524,2]
[334560178,1723213860777,-150.0,0.00016524,2]
[334560179,1723213860786,-150.0,0.00016524,2]
[334560180,1723213860795,-300.0,0.00016524,2]
[334560181,1723213860809,-247.75,0.00016524,2]
[334560182,1723213860819,-150.0,0.00016524,2]
[334560183,1723213860828,-416.98,0.00016524,2]
[334560184,1723213860837,-150.0,0.00016524,2]
[334560185,1723213860846,-150.0,0.00016524,2]
[334560186,1723213860855,-530.8,0.00016524,2]
[334560187,1723213860864,-150.0,0.00016524,2]
[334560188,1723213860873,-150.0,0.00016524,2]
[334560189,1723213860882,-425.04,0.00016524,2]
[334560190,1723213860892,-356.41,0.00016524,2]
[334560191,1723213860901,-298.0,0.000166,2]
[334560192,1723213860910,-150.0,0.000166,2]
[334560193,1723213860920,-1763.86345719,0.00016604,2]
[334560194,1723213860929,-150.0,0.0001663,2]
[334560195,1723213860938,-366.61282358,0.00016657,2]
[334560196,1723213860948,-2000.0,0.00016712,2]
[334560197,1723213860957,-2818.982069,0.00016712,2]
[334560198,1723213860968,-186.5,0.00016712,2]
[334560199,1723213860977,-8225.1604409,0.00016781,7]
[334560200,1723213860987,-2290.5009768,0.00016781,7]
[334560201,1723213860998,-13545.7999719,0.00016781,7]
[334560202,1723213861007,-2302.4902043,0.00016781,7]
[334560203,1723213861018,-2857.47329597,0.00016781,7]
[334560204,1723213861029,-654.7379,0.00016781,7]
[334560205,1723213861039,-236.09222785,0.00016781,7]
[334560206,1723213861052,-6775.0,0.00016781,7]
[334560207,1723213861061,-3621.63816941,0.00016781,7]
[334560208,1723213861071,-150.0,0.00016783,2]
[334560209,1723213861080,-366.61282358,0.00016798,2]
[334560210,1723213861089,-150.0,0.00016935,2]
[334560211,1723213861099,-366.61282358,0.00016939,2]
[334560212,1723213861111,-2000.0,0.00016986,2]
[334560213,1723213861132,-246152.96,0.00016986,2]
[334560214,1723213861147,-150.0,0.00016996,2]
[334560215,1723213861165,-1894.0,0.00016996,2]
[334560216,1723213861183,-247.0,0.00016996,2]
[334560217,1723213861200,-5000.0,0.00017,2]
[334560218,1723213861218,-150.0,0.00017,2]
[334560219,1723213861234,-298.0,0.0001704,2]
[334560220,1723213861252,-366.61282358,0.00017081,2]
[334560221,1723213861266,-150.0,0.00017087,2]
[334560222,1723213861280,-150.0,0.00017087,2]
[334560223,1723213861294,-2490.42849,0.0001709,2]
[334560224,1723213861315,-1700.0,0.00017102,2]
[334560225,1723213861333,-2000.0,0.00017102,2]
[334560226,1723213861348,-800.0,0.00017102,2]
[334560227,1723213861360,-3000.0,0.00017102,2]
[334560228,1723213861376,-3000.0,0.00017102,2]
[334560229,1723213861391,-166.69,0.00017137,2]
[334560230,1723213861406,-2258.0,0.0001714,2]
[334560231,1723213861425,-600.0,0.00017146,2]
[334560232,1723213861439,-500.34170008,0.00017146,2]
[334560233,1723213861455,-600.0,0.00017146,2]
[334560234,1723213861470,-362.37,0.00017189,2]
[334560235,1723213861485,-366.61282358,0.00017222,2]
[334560236,1723213861498,-150.0,0.00017239,2]
[334560237,1723213861512,-2000.0,0.0001726,2]
[334560238,1723213861525,-366.61282358,0.00017364,2]
[334560239,1723213861540,-150.0,0.00017391,2]
[334560240,1723213861560,-298.0,0.0001748,2]
[334560241,1723213861574,-366.61282358,0.00017505,2]
[334560242,1723213861588,-2000.0,0.00017534,2]
[334560243,1723213861602,-599.57,0.00017534,2]
[334560244,1723213861616,-2818.982069,0.00017534,2]
[334560245,1723213861629,-150.0,0.00017543,2]
[334560246,1723213861643,-366.61282358,0.00017646,2]
[334560247,1723213861657,-1700.0,0.0001765,2]
[334560248,1723213861672,-2000.0,0.0001765,2]
[334560249,1723213861686,-800.0,0.0001765,2]
[334560250,1723213861700,-3000.0,0.0001765,2]
[334560251,1723213861713,-3000.0,0.0001765,2]
[334560252,1723213861726,-150.0,0.00017696,2]
[334560253,1723213861740,-150.0,0.00017696,2]
[334560254,1723213861754,-366.61282358,0.00017788,2]
[334560255,1723213861768,-166.69,0.00017791,2]
[334560256,1723213861781,-2000.0,0.00017808,2]
[334560257,1723213861796,-150.0,0.00017848,2]
[334560258,1723213861819,-175.5,0.0001788,30]
[334560259,1723213861833,-150.5,0.0001789,30]
[334560260,1723213861847,-298.0,0.0001791,2]
[334560261,1723213861863,-366.61282358,0.00017929,2]
[334560262,1723213861877,-804.11028538,0.00018,2]
[334560263,1723213861892,-308.21306784,0.00018,2]
[334560264,1723213861907,-155.08147786,0.00018,2]
[334560265,1723213861922,-656.50903949,0.00018,2]
[334560266,1723213861937,-1119.10695754,0.00018,2]
[334560267,1723213861952,-5552.68248598,0.00018,2]
[334560268,1723213861966,-5000.0,0.00018,2]
[334560269,1723213861980,-750.0,0.00018,2]
[334560270,1723213861994,-150.0,0.00018,2]
[334560271,1723213862009,-150.0,0.00018,2]
[334560272,1723213862023,-150.0,0.00018,2]
[334560273,1723213862037,-366.61282358,0.00018071,2]
[334560274,1723213862052,-2000.0,0.00018082,2]
[334560275,1723213862066,-1673.86337092,0.000181,2]
[334560276,1723213862080,-4982.4,0.000181,2]
[334560277,1723213862094,-150.0,0.00018152,2]
[334560278,1723213862109,-300.0,0.00018178,2]
[334560279,1723213862125,-303.87,0.00018178,2]
[334560280,1723213862138,-2000.0,0.00018198,2]
[334560281,1723213862148,-1700.0,0.00018198,2]
[334560282,1723213862157,-800.0,0.00018198,2]
[334560283,1723213862167,-3000.0,0.00018198,2]
[334560284,1723213862323,-3000.0,0.00018198,2]
[334560285,1723213862342,-366.61282358,0.00018212,2]
[334560286,1723213862352,-150.0,0.00018304,2]
[334560287,1723213862361,-150.0,0.00018304,2]
[334560288,1723213862371,-298.0,0.0001835,2]
[334560289,1723213862381,-366.61282358,0.00018354,2]
[334560290,1723213862391,-2000.0,0.00018356,2]
[334560291,1723213862401,-2818.982069,0.00018356,2]
[334560292,1723213862410,-166.69,0.00018444,2]
[334560293,1723213862421,-150.0,0.00018457,2]
[334560294,1723213862434,-366.61282358,0.00018495,2]
[334560295,1723213862444,-2450.05741211,0.000186,2]
[334560296,1723213862453,-150.0,0.00018609,2]
[334560297,1723213862463,-2000.0,0.0001863,2]
[334560298,1723213862473,-366.61282358,0.00018636,2]
[334560299,1723213862483,-800.0,0.00018746,2]
[334560300,1723213862493,-150.0,0.00018761,2]
[334560301,1723213862504,-366.61282358,0.00018778,2]
[334560302,1723213862514,-298.0,0.0001879,2]
[334560303,1723213862524,-3162.0,0.00018854,2]
[334560304,1723213862534,-2000.0,0.00018904,2]
[334560305,1723213862544,-150.0,0.00018913,2]
[334560306,1723213862562,-150.0,0.00018913,2]
[334560307,1723213862572,-366.61282358,0.00018919,2]
[334560308,1723213862582,-3160.97757136,0.00018944,2]
[334560309,1723213862592,-300.0,0.00018999,2]
[334560310,1723213862601,-300.0,0.00018999,2]
[334560311,1723213862611,-1325.0414431,0.00019,6]
[334560312,1723213862621,-177.72062522,0.00019,2]
[334560313,1723213862631,-200.55803678,0.00019,2]
[334560314,1723213862642,-155.69802352,0.00019,2]
[334560315,1723213862651,-1000.73170468,0.00019,2]
[334560316,1723213862660,-5000.0,0.00019,2]
[334560317,1723213862670,-42980.01605168,0.00019,2]
[334560318,1723213862679,-150.0,0.00019,2]
[334560319,1723213862689,-1001.969998,0.00019,2]
[334560320,1723213862699,-366.61282358,0.00019061,2]
[334560321,1723213862708,-150.0,0.00019065,2]
[334560322,1723213862718,-11723.21,0.00019151,2]
[334560323,1723213862727,-300.0,0.00019177,2]
[334560324,1723213862738,-300.0,0.00019177,2]
[334560325,1723213862748,-2000.0,0.00019178,2]
[334560326,1723213862759,-1000.0,0.00019178,2]
[334560327,1723213862769,-1000.0,0.00019178,2]
[334560328,1723213862778,-1000.0,0.00019178,2]
[334560329,1723213862788,-1000.0,0.00019178,2]
[334560330,1723213862798,-1000.0,0.00019178,2]
[334560331,1723213862816,-1000.0,0.00019178,2]
[334560332,1723213862829,-1000.0,0.00019178,2]
[334560333,1723213862839,-828.70770582,0.00019178,2]
[334560334,1723213862849,-500.0,0.00019178,2]
[334560335,1723213862859,-500.0,0.00019178,2]
[334560336,1723213862868,-500.0,0.00019178,2]
[334560337,1723213862877,-500.0,0.00019178,2]
[334560338,1723213862887,-500.0,0.00019178,2]
[334560339,1723213862897,-500.0,0.00019178,2]
[334560340,1723213862906,-649.6219013,0.00019178,2]
[334560341,1723213862916,-151.0,0.00019178,2]
[334560342,1723213862926,-151.0,0.00019178,2]
[334560343,1723213862935,-183.504376,0.00019178,2]
[334560344,1723213862945,-22680.8,0.00019178,2]
[334560345,1723213862954,-200.0,0.00019178,2]
[334560346,1723213862963,-200.0,0.00019178,2]
[334560347,1723213862973,-200.0,0.00019178,2]
[334560348,1723213862982,-200.0,0.00019178,2]
[334560349,1723213862991,-200.0,0.00019178,2]
[334560350,1723213863002,-200.0,0.00019178,2]
[334560351,1723213863012,-187.0,0.00019178,2]
[334560352,1723213863021,-60599.19,0.00019178,2]
[334560353,1723213863031,-3164.67,0.00019178,2]
[334560354,1723213863041,-750.0,0.000192,2]
[334560355,1723213863058,-366.61282358,0.00019202,4]
[334560356,1723213863068,-150.0,0.00019217,4]
[334560357,1723213863078,-298.0,0.0001923,2]
[334560358,1723213863088,-2000.0,0.00019294,2]
[334560359,1723213863098,-1700.0,0.00019294,2]
[334560360,1723213863108,-3000.0,0.00019294,2]
[334560361,1723213863118,-3000.0,0.00019294,2]
[334560362,1723213863127,-16193.27,0.00019339,2]
[334560363,1723213863138,-3655.79,0.00019339,2]
[334560364,1723213863147,-1108.44,0.00019339,2]
[334560365,1723213863157,-529.08,0.00019339,2]
[334560366,1723213863166,-343.24,0.00019339,2]
[334560367,1723213863176,-366.61282358,0.00019343,4]
[334560368,1723213863186,-150.0,0.0001937,4]
[334560369,1723213863195,-150.0,0.000194,4]
[334560370,1723213863205,-362.37,0.00019432,2]
[334560371,1723213863215,-2000.0,0.00019452,2]
[334560372,1723213863225,-366.61282358,0.00019485,4]
[334560373,1723213863235,-800.0,0.00019487,2]
[334560374,1723213863245,-800.0,0.00019487,2]
[334560375,1723213863255,-1000.0,0.000195,2]
[334560376,1723213863264,-150.0,0.00019522,4]
[334560377,1723213863274,-150.0,0.00019522,4]
[334560378,1723213863283,-19931.28736463,0.00019599,2]
[334560379,1723213863293,-366.61282358,0.00019626,4]
[334560380,1723213863314,-186.5,0.00019658,2]
[334560381,1723213863324,-298.0,0.0001967,2]
[334560382,1723213863334,-150.0,0.00019674,4]
[334560383,1723213863343,-4982.4,0.000197,2]
[334560384,1723213863354,-2000.0,0.00019726,2]
[334560385,1723213863364,-150.0,0.0001975,2]
[334560386,1723213863374,-366.61282358,0.00019768,4]
[334560387,1723213863384,-150.0,0.00019826,4]
[334560388,1723213863394,-800.0,0.00019842,2]
[334560389,1723213863404,-12115.1914738,0.00019886,2]
[334560390,1723213863417,-2236.0639699,0.00019886,2]
[334560391,1723213863428,-981.33452797,0.0001989,2]
[334560392,1723213863438,-11550.09416213,0.000199,2]
[334560393,1723213863448,-11550.09416212,0.000199,2]
[334560394,1723213863461,-11550.09416212,0.000199,2]
[334560395,1723213863471,-366.61282358,0.00019909,4]
[334560396,1723213863481,-150.0,0.00019978,4]
[334560397,1723213863490,-2255.0,0.0001999,2]
[334560398,1723213863502,-150.0,0.00019996,2]
[334560399,1723213863512,-247.0,0.00019996,2]
[334560400,1723213863522,-4922.9237392,0.00019996,2]
[334560401,1723213863536,-6309.48967687,0.0002,2]
[334560402,1723213863547,-868.8876107,0.0002,2]
[334560403,1723213863567,-17834.52653149,0.0002,2]
[334560404,1723213863578,-895.95525479,0.0002,2]
[334560405,1723213863588,-3404.45442445,0.0002,2]
[334560406,1723213863598,-1181.98860053,0.0002,4]
[334560407,1723213863608,-2255.80117221,0.0002,2]
[334560408,1723213863618,-308.14656457,0.0002,2]
[334560409,1723213863627,-3200.0,0.0002,2]
[334560410,1723213863638,-218.10372429,0.0002,2]
[334560411,1723213863647,-155.39217867,0.0002,2]
[334560412,1723213863657,-628.18787377,0.0002,2]
[334560413,1723213863666,-156.66010127,0.0002,2]
[334560414,1723213863676,-155.23391022,0.0002,2]
[334560415,1723213863686,-150.0,0.0002,2]
[334560416,1723213863696,-293.89508541,0.0002,2]
[334560417,1723213863705,-3775.34637271,0.0002,2]
[334560418,1723213863714,-6653.0,0.0002,2]
[334560419,1723213863724,-3950.0,0.0002,2]
[334560420,1723213863733,-2584.86618988,0.0002,2]
[334560421,1723213863742,-5000.0,0.0002,2]
[334560422,1723213863751,-1288.20728017,0.0002,2]
[334560423,1723213863761,-192.0,0.0002,2]
[334560424,1723213863771,-155.3660136,0.0002,2]
[334560425,1723213863781,-859.0,0.0002,2]
[334560426,1723213863790,-989.0,0.0002,2]
[334560427,1723213863805,-171.0,0.0002,2]
[334560428,1723213863815,-2000.0,0.0002,2]
[334560429,1723213863824,-500.0,0.0002,2]
[334560430,1723213863834,-2000.0,0.0002,2]
[334560431,1723213863844,-2000.0,0.0002,2]
[334560432,1723213863854,-1268.59509223,0.0002,2]
[334560433,1723213863864,-2000.0,0.0002,2]
[334560434,1723213863874,-800.0,0.0002,2]
[334560435,1723213863884,-300.0,0.0002,7]
[334560436,1723213863893,-396.05814839,0.0002,2]
[334560437,1723213863903,-237.63488903,0.0002,2]
[334560438,1723213863912,-158.42325936,0.0002,2]
[334560439,1723213863922,-1000.0,0.0002,2]
[334560440,1723213863932,-1000.0,0.0002,2]
[334560441,1723213863942,-150.0,0.0002,2]
[334560442,1723213863952,-156.0,0.0002001,3]
[334560443,1723213863961,-3760.004308,0.0002001,2]
[334560444,1723213863971,-2000.0,0.0002001,2]
[334560445,1723213863981,-2000.0,0.0002001,2]
[334560446,1723213863990,-2050.841624,0.0002002,2]
[334560447,1723213864002,-2000.0,0.0002002,2]
[334560448,1723213864013,-500.0,0.0002002,2]
[334560449,1723213864023,-3378.804518,0.0002003,2]
[334560450,1723213864036,-366.61282358,0.00020051,4]
[334560451,1723213864046,-500.0,0.00020102,2]
[334560452,1723213864060,-600.0,0.00020103,2]
[334560453,1723213864070,-298.0,0.0002011,2]
[334560454,1723213864080,-500.0,0.00020111,2]
[334560455,1723213864090,-500.0,0.00020113,2]
[334560456,1723213864099,-500.0,0.00020126,2]
[334560457,1723213864109,-150.0,0.0002013,4]
[334560458,1723213864119,-150.0,0.0002013,4]
[334560459,1723213864129,-600.0,0.00020132,2]
[334560460,1723213864139,-3100.0,0.00020136,2]
[334560461,1723213864149,-3100.0,0.00020146,2]
[334560462,1723213864159,-500.0,0.00020147,2]
[334560463,1723213864169,-2800.0,0.00020155,2]
[334560464,1723213864178,-900.0,0.00020156,2]
[334560465,1723213864188,-366.61282358,0.00020192,4]
[334560466,1723213864198,-500.0,0.00020201,2]
[334560467,1723213864207,-2800.0,0.00020258,2]
[334560468,1723213864218,-600.0,0.00020261,2]
[334560469,1723213864228,-2000.0,0.00020273,2]
[334560470,1723213864238,-1700.0,0.00020276,2]
[334560471,1723213864248,-150.0,0.00020283,4]
[334560472,1723213864258,-10994.96,0.000203,7]
[334560473,1723213864268,-1700.0,0.00020304,2]
[334560474,1723213864278,-500.0,0.00020311,2]
[334560475,1723213864289,-366.61282358,0.00020333,4]
[334560476,1723213864304,-2800.0,0.00020389,2]
[334560477,1723213864315,-2000.0,0.0002039,2]
[334560478,1723213864325,-1700.0,0.0002039,2]
[334560479,1723213864336,-3000.0,0.0002039,2]
[334560480,1723213864346,-3000.0,0.0002039,2]
[334560481,1723213864356,-500.0,0.00020416,2]
[334560482,1723213864366,-600.0,0.0002043,2]
[334560483,1723213864376,-150.0,0.00020435,4]
[334560484,1723213864387,-312.94,0.00020447,2]
[334560485,1723213864396,-600.0,0.00020461,2]
[334560486,1723213864406,-366.61282358,0.00020475,4]
[334560487,1723213864420,-205.46337221,0.00020494,2]
[334560488,1723213864430,-5173.0,0.000205,3]
[334560489,1723213864440,-3100.0,0.00020501,2]
[334560490,1723213864450,-420.86,0.00020505,2]
[334560491,1723213864461,-420.86,0.00020505,2]
[334560492,1723213864472,-420.86,0.00020505,2]
[334560493,1723213864483,-420.86,0.00020505,2]
[334560494,1723213864492,-420.86,0.00020505,2]
[334560495,1723213864505,-835.07,0.00020505,2]
[334560496,1723213864515,-2800.0,0.00020512,2]
[334560497,1723213864525,-500.0,0.0002053,2]
[334560498,1723213864535,-900.0,0.00020541,2]
[334560499,1723213864545,-2000.0,0.00020547,2]
[334560500,1723213864560,-172.88,0.00020548,2]
[334560501,1723213864570,-173.13,0.00020548,2]
[334560502,1723213864580,-20132.04,0.00020548,2]
[334560503,1723213864590,-298.0,0.0002055,2]
[334560504,1723213864600,-200.0,0.0002055,2]
[334560505,1723213864610,-500.0,0.00020553,2]
[334560506,1723213864621,-160.97672045,0.00020574,2]
[334560507,1723213864748,-150.0,0.00020587,4]
[334560508,1723213864759,-600.0,0.00020614,2]
[334560509,1723213864769,-366.61282358,0.00020616,4]
[334560510,1723213864779,-500.0,0.00020617,2]
[334560511,1723213864790,-2800.0,0.00020625,2]
[334560512,1723213864802,-500.0,0.00020627,2]
[334560513,1723213864812,-600.0,0.00020635,2]
[334560514,1723213864822,-2800.0,0.00020642,2]
[334560515,1723213864832,-500.0,0.00020662,2]
[334560516,1723213864842,-600.0,0.00020684,2]
[334560517,1723213864851,-4427.0,0.00020739,2]
[334560518,1723213864861,-150.0,0.00020739,4]
[334560519,1723213864871,-150.0,0.00020739,4]
[334560520,1723213864882,-500.0,0.00020755,2]
[334560521,1723213864892,-366.61282358,0.00020758,4]
[334560522,1723213864902,-3100.0,0.00020759,2]
[334560523,1723213864912,-600.0,0.00020774,2]
[334560524,1723213864922,-500.0,0.00020779,2]
[334560525,1723213864932,-2000.0,0.00020821,2]
[334560526,1723213864942,-2800.0,0.00020821,2]
[334560527,1723213864952,-600.0,0.00020837,2]
[334560528,1723213864963,-2800.0,0.00020842,2]
[334560529,1723213864973,-500.0,0.0002085,2]
[334560530,1723213864983,-2800.0,0.00020858,2]
[334560531,1723213864993,-500.0,0.00020871,2]
[334560532,1723213865005,-1700.0,0.00020874,2]
[334560533,1723213865016,-150.0,0.00020891,4]
[334560534,1723213865027,-366.61282358,0.00020899,4]
[334560535,1723213865038,-800.0,0.00020938,2]
[334560536,1723213865053,-500.0,0.00020987,2]
[334560537,1723213865065,-1210.25239429,0.00020988,2]
[334560538,1723213865075,-298.0,0.0002099,2]
[334560539,1723213865085,-200.0,0.0002099,2]
[334560540,1723213865094,-500.0,0.00020994,2]
[334560541,1723213865103,-500.0,0.00020995,2]
[334560542,1723213865113,-568.59804658,0.00021,2]
[334560543,1723213865123,-1325.0414431,0.00021,7]
[334560544,1723213865133,-4107.6674792,0.00021,4]
[334560545,1723213865143,-20078.57922602,0.00021,4]
[334560546,1723213865153,-5000.0,0.00021,2]
[334560547,1723213865162,-226.23529077,0.00021,2]
[334560548,1723213865173,-265.87,0.00021,2]
[334560549,1723213865183,-150.0,0.00021,4]
[334560550,1723213865193,-11497.0,0.00021,5]
[334560551,1723213865203,-1004.44270793,0.00021,5]
[334560552,1723213865213,-600.0,0.00021029,2]
[334560553,1723213865223,-500.0,0.00021033,2]